[Event "SWE-ch Masters Elite 2018"]
[Site "Ronneby"]
[Date "2018.07.06"]
[Round "7"]
[White "Logdahl, Harald"]
[Black "Lind, Jan-Olov"]
[Result "1/2-1/2"]
[ECO "B06"]
[WhiteElo "2249"]
[BlackElo "2234"]
[Annotator "NA"]
[PlyCount "104"]
[EventDate "2018.06.30"]
[EventType "tourn"]
[EventCountry "SWE"]
[SourceTitle "playchess.com"]
[Source "ChessBase"]
[SourceQuality "1"]
[TimeControl "40/5400+30:1800+30"]

1. e4 {[%emt 0:00:00]} g6 {[%emt 0:00:00]} 2. d4 {[%emt 0:00:00]} Bg7 {[%emt 0:00:00]} 3. Nc3 {[%emt 0:00:10]} d6 {[%emt 0:00:00]} 4. Be3 {[%emt 0:00:13]} a6 {[%emt 0:00:22]} 5. Qd2 {[%emt 0:00:17]} b5 {[%emt 0:00:13]} 6. f3 {[%emt 0:00:47]} Nf6 {[%emt 0:00:54] B06: Modern Defence} (6... Nd7 7. h4 h6 8. Nh3 Nb6 9. O-O-O b4 10. Nd5 Nxd5 11. exd5 Bxh3 12. Rxh3 Nf6 13. Bc4 Qb8 14. g4 Qb7 15. Kb1 Nxd5 16. Bxd5 Qxd5 17. Qxb4 {0-1 (69) Kryvoruchko,Y (2689)-Petrosian,T (2601) Riadh 2017}) 7. a4 {[%emt 0:04:13]} b4 {[%emt 0:02:12]} 8. Nd1 {[%emt 0:00:11]} a5 {[%emt 0:00:11]} 9. c3 {[%emt 0:01:22]} bxc3 {[%emt 0:02:34]} 10. bxc3 {[%emt 0:00:05]} Nbd7 {[%emt 0:03:01]} 11. Bh6 {[%emt 0:02:24]} O-O {[%emt 0:03:29]} 12. Bxg7 {[%emt 0:00:08]} Kxg7 {[%emt 0:00:05]} 13. Bd3 {[%emt 0:00:26]} e5 {[%emt 0:05:23]} 14. Ne2 {[%emt 0:03:01]} Bb7 $146 {[%emt 0:10:26]} ({Predecessor:} 14... d5 15. exd5 exd4 16. cxd4 Nxd5 {1-0 (57) Bezemer,A (2355)-Wohl,A (2379) Wijk aan Zee 2003}) 15. O-O {[%emt 0:00:49]} Re8 {[%emt 0:10:22]} 16. Nf2 {[%emt 0:01:23]} Qb8 {[%emt 0:11:51]} 17. Kh1 {[%emt 0:06:22]} Qa7 {[%emt 0:00:26]} 18. Bb5 {[%emt 0:03:08]} c6 {[%emt 0:02:38]} 19. Bd3 {[%emt 0:00:17]} Ba6 {[%emt 0:01:24]} 20. Bxa6 {[%emt 0:04:54]} Qxa6 {[%emt 0:00:06]} 21. Ng3 {[%emt 0:00:28]} h6 {[%emt 0:03:37]} 22. Ng4 {[%emt 0:01:38]} Nxg4 {[%emt 0:05:26]} 23. fxg4 {[%emt 0:01:42]} Qc4 {[%emt 0:02:27]} 24. g5 {[%emt 0:09:00] [#]} (24. Rf2 $11 {remains equal.}) 24... h5 $1 {[%emt 0:06:56]} 25. h4 {[%emt 0:04:13]} Rab8 {[%emt 0:05:23]} 26. Rf3 {[%emt 0:01:26]} exd4 {[%emt 0:05:15]} 27. cxd4 {[%emt 0:00:29]} c5 {[%emt 0:01:43]} 28. Raf1 $17 {[%emt 0:03:21]} Re7 {[%emt 0:05:11]} 29. e5 {[%emt 0:33:40]} dxe5 {[%emt 0:03:10]} 30. d5 {[%emt 0:00:26]} Qxh4+ {[%emt 0:01:34]} 31. Kg1 {[%emt 0:00:04]} Rf8 {[%emt 0:00:45]} 32. d6 {[%emt 0:06:20]} Re6 {[%emt 0:01:18]} 33. Qf2 {[%emt 0:00:33]} Qd4 {[%emt 0:00:34]} 34. Ne4 {[%emt 0:00:25]} Qxf2+ {[%emt 0:00:34]} 35. R3xf2 {[%emt 0:02:25]} f5 {[%emt 0:04:14]} 36. gxf6+ {[%emt 0:00:43]} Nxf6 {[%emt 0:00:20]} 37. Rd1 {[%emt 0:09:00]} Nd7 {[%emt 0:02:50]} 38. Rd5 {[%emt 0:01:30]} Rxf2 {[%emt 0:00:41]} 39. Kxf2 {[%emt 0:00:18]} Kf8 {[%emt 0:00:18]} 40. Nxc5 {[%emt 0:00:29]} Nxc5 {[%emt 0:00:32]} 41. Rxc5 {[%emt 0:30:08]} Rxd6 {[%emt 0:31:31]} 42. Rxa5 {[%emt 0:00:00]} Rd2+ {[%emt 0:00:00]} 43. Kf1 {[%emt 0:00:00]} Ra2 {[%emt 0:00:00]} 44. Rxe5 {[%emt 0:00:00]} Rxa4 {[%emt 0:00:00]} 45. Re1 {[%emt 0:00:00]} Ra2 {[%emt 0:00:00]} 46. Kg1 {[%emt 0:00:00]} Kg7 {[%emt 0:00:00]} 47. Rb1 {[%emt 0:00:00]} Kh6 {[%emt 0:00:00]} 48. Rb3 {[%emt 0:00:00]} h4 {[%emt 0:00:00]} 49. g3 {[%emt 0:00:00]} h3 {[%emt 0:00:00]} 50. g4 {[%emt 0:00:00]} h2+ {[%emt 0:00:00]} 51. Kh1 {[%emt 0:00:00]} Kg5 {[%emt 0:00:00]} 52. Rb2 {[%emt 0:00:00]} Rxb2 {[%emt 0:00:00]} 1/2-1/2

[Event "SWE-ch Masters Elite 2018"]
[Site "Ronneby"]
[Date "2018.07.07"]
[Round "8"]
[White "Wiedenkeller, Michael"]
[Black "Malmstig, Erik"]
[Result "1/2-1/2"]
[ECO "A57"]
[WhiteElo "2465"]
[BlackElo "2336"]
[Annotator "ChessBase"]
[PlyCount "138"]
[EventDate "2018.06.30"]
[EventType "tourn"]
[EventCountry "SWE"]
[SourceTitle "playchess.com"]
[Source "ChessBase"]
[SourceQuality "1"]
[TimeControl "40/5400+30:1800+30"]

1. d4 {[%emt 0:00:00]} Nf6 {[%emt 0:00:00]} 2. c4 {[%emt 0:00:15]} c5 {[%emt 0:00:00]} 3. d5 {[%emt 0:00:31]} b5 {[%emt 0:00:14]} 4. Qc2 {[%emt 0:00:25]} b4 {[%emt 0:01:29]} 5. e4 {[%emt 0:02:01]} d6 {[%emt 0:00:41]} 6. Bd3 {[%emt 0:07:06]} g6 {[%emt 0:01:55]} 7. f4 {[%emt 0:00:42]} Bg7 {[%emt 0:03:39]} 8. Nf3 {[%emt 0:04:21]} O-O {[%emt 0:02:13]} 9. O-O {[%emt 0:02:59]} Nbd7 {[%emt 0:03:25]} 10. Qf2 {[%emt 0:09:40]} Ba6 {[%emt 0:10:09]} 11. Qh4 {[%emt 0:09:43]} Nb6 {[%emt 0:02:48]} 12. Nbd2 {[%emt 0:01:44]} Qc8 {[%emt 0:07:01]} 13. h3 {[%emt 0:17:39]} e6 {[%emt 0:09:55]} 14. dxe6 {[%emt 0:01:08]} fxe6 {[%emt 0:00:12]} 15. e5 {[%emt 0:03:00]} Nh5 {[%emt 0:02:28]} 16. Ne4 {[%emt 0:01:57]} d5 {[%emt 0:02:23]} 17. Nd6 {[%emt 0:03:41]} Qd8 {[%emt 0:05:30]} 18. Qg4 {[%emt 0:00:35]} Qe7 {[%emt 0:03:05]} 19. Ng5 {[%emt 0:01:10]} Nc8 {[%emt 0:07:59]} 20. Nxh7 {[%emt 0:04:41]} Nxd6 {[%emt 0:03:32]} 21. exd6 {[%emt 0:07:39]} Bd4+ {[%emt 0:06:47]} 22. Kh2 {[%emt 0:00:53]} Qxh7 {[%emt 0:04:10]} 23. Bxg6 {[%emt 0:00:07]} Qg7 {[%emt 0:01:30]} 24. Qxe6+ {[%emt 0:04:36]} Kh8 {[%emt 0:00:59]} 25. Bxh5 {[%emt 0:00:57]} dxc4 {[%emt 0:01:43]} 26. d7 {[%emt 0:03:16]} Bb7 {[%emt 0:03:58]} 27. Bf3 {[%emt 0:01:07]} Bxf3 {[%emt 0:00:30]} 28. Rxf3 {[%emt 0:00:28]} Rg8 {[%emt 0:00:22]} 29. Qe2 {[%emt 0:03:14]} Qxd7 {[%emt 0:02:34]} 30. Be3 {[%emt 0:02:07]} Qg7 {[%emt 0:03:44]} 31. Qf2 {[%emt 0:02:47]} Bxb2 {[%emt 0:02:08]} 32. Rd1 {[%emt 0:00:08]} Bf6 {[%emt 0:02:34]} 33. Bxc5 {[%emt 0:00:07]} a5 {[%emt 0:01:25]} 34. Rd5 {[%emt 0:01:02]} Qf7 {[%emt 0:00:30]} 35. Rf5 {[%emt 0:00:25]} Rad8 {[%emt 0:02:05]} 36. Bb6 {[%emt 0:01:51]} Rd5 {[%emt 0:00:22]} 37. Rxd5 {[%emt 0:01:21]} Qxd5 {[%emt 0:00:06]} 38. Qe2 {[%emt 0:00:35]} b3 {[%emt 0:01:21]} 39. axb3 {[%emt 0:01:26]} cxb3 {[%emt 0:00:05]} 40. Bxa5 {[%emt 0:01:55]} b2 {[%emt 0:02:40]} 41. Qe1 {[%emt 0:07:32]} Qa2 {[%emt 0:10:56]} 42. Rf2 {[%emt 0:14:16]} b1=Q {[%emt 0:06:03]} 43. Rxa2 {[%emt 0:00:08]} Qxa2 {[%emt 0:00:14]} 44. Bd2 {[%emt 0:00:03]} Qd5 {[%emt 0:01:37]} 45. Qe2 {[%emt 0:00:39]} Bh4 {[%emt 0:07:19]} 46. Bc3+ {[%emt 0:00:27]} Kh7 {[%emt 0:00:11]} 47. g4 {[%emt 0:01:26]} Ra8 {[%emt 0:04:37]} 48. Qc2+ {[%emt 0:01:16]} Kh6 {[%emt 0:01:23]} 49. g5+ {[%emt 0:01:06]} Bxg5 {[%emt 0:00:40]} 50. fxg5+ {[%emt 0:00:13]} Kxg5 {[%emt 0:00:12]} 51. Bd2+ {[%emt 0:01:40]} Kf6 {[%emt 0:01:21]} 52. Bc3+ {[%emt 0:00:59]} Ke6 {[%emt 0:00:29]} 53. Qg6+ {[%emt 0:00:41]} Kd7 {[%emt 0:00:19]} 54. Qg7+ {[%emt 0:00:19]} Kc6 {[%emt 0:00:17]} 55. Qf6+ {[%emt 0:00:16]} Kb5 {[%emt 0:00:26]} 56. Qe5 {[%emt 0:00:21]} Ra2+ {[%emt 0:00:34]} 57. Kg3 {[%emt 0:00:27]} Rg2+ {[%emt 0:00:32]} 58. Kf4 {[%emt 0:00:13]} Rf2+ {[%emt 0:00:39]} 59. Kg4 {[%emt 0:00:10]} Qxe5 {[%emt 0:00:27]} 60. Bxe5 {[%emt 0:00:10]} Kc6 {[%emt 0:00:11]} 61. h4 {[%emt 0:01:07]} Kd5 {[%emt 0:00:23]} 62. Ba1 {[%emt 0:01:28]} Ke4 {[%emt 0:00:20]} 63. Kg5 {[%emt 0:00:26]} Rf5+ {[%emt 0:00:37]} 64. Kg6 {[%emt 0:00:09]} Rf1 {[%emt 0:01:38]} 65. Bf6 {[%emt 0:00:31]} Rg1+ {[%emt 0:00:46]} 66. Bg5 {[%emt 0:00:09]} Ke5 {[%emt 0:01:04]} 67. h5 {[%emt 0:00:17]} Ke6 {[%emt 0:00:37]} 68. h6 {[%emt 0:00:08]} Rh1 {[%emt 0:00:14]} 69. h7 {[%emt 0:00:03]} Rxh7 {[%emt 0:00:15]} 1/2-1/2

[Event "SWE-ch Masters Elite 2018"]
[Site "Ronneby"]
[Date "2018.07.07"]
[Round "8"]
[White "Rydstrom, Tom"]
[Black "Furhoff, Johan"]
[Result "1-0"]
[ECO "C78"]
[WhiteElo "2307"]
[BlackElo "2332"]
[Annotator "NA"]
[PlyCount "79"]
[EventDate "2018.06.30"]
[EventType "tourn"]
[EventCountry "SWE"]
[SourceTitle "playchess.com"]
[Source "ChessBase"]
[SourceQuality "1"]
[TimeControl "40/5400+30:1800+30"]

1. e4 {[%emt 0:00:00]} e5 {[%emt 0:00:00]} 2. Nf3 {[%emt 0:00:00]} Nc6 {[%emt 0:00:00]} 3. Bb5 {[%emt 0:00:00]} a6 {[%emt 0:00:00]} 4. Ba4 {[%emt 0:00:00]} Nf6 {[%emt 0:00:00]} 5. O-O {[%emt 0:00:40]} b5 {[%emt 0:00:03]} 6. Bb3 {[%emt 0:00:05]} Bb7 {[%emt 0:00:06]} 7. Nc3 {[%emt 0:00:37]} Be7 {[%emt 0:02:49]} 8. d3 {[%emt 0:00:19]} O-O {[%emt 0:02:07]} 9. Nd5 {[%emt 0:00:12]} Na5 {[%emt 0:07:08]} 10. Nxe7+ {[%emt 0:00:49]} Qxe7 {[%emt 0:00:09]} 11. Nh4 {[%emt 0:00:14] C84: Closed Ruy Lopez: Unusual White 6th moves} Nxb3 {[%emt 0:01:14]} 12. axb3 {[%emt 0:00:07]} d5 {[%emt 0:08:53]} 13. Nf5 {[%emt 0:00:05]} Qe6 {[%emt 0:03:33]} 14. f3 {[%emt 0:00:38]} g6 {[%emt 0:09:41]} 15. Ne3 {[%emt 0:08:55]} (15. Nh6+ Kg7 16. Qe1 Ng8 17. Ng4 f6 18. Be3 h5 {½-½ (77) Vallejo Pons,F (2684)-Kravtsiv,M (2621) Berlin 2015}) 15... Rad8 {[%emt 0:02:52]} 16. Qe2 {[%emt 0:05:31] [#]} c5 $146 {[%emt 0:10:06]} ({Predecessor:} 16... d4 17. Nd1 Nh5 18. Nf2 f5 {1-0 (36) Eslon,J (2415)-Smejkal,J (2540) Amsterdam 1986}) 17. c4 {[%emt 0:05:49]} d4 {[%emt 0:02:06]} 18. Nd5 $1 {[%emt 0:02:02]} Nxd5 {[%emt 0:01:58]} 19. cxd5 {[%emt 0:00:51]} Qe7 {[%emt 0:02:49]} 20. Bd2 {[%emt 0:03:19]} f5 {[%emt 0:02:41]} 21. Rfc1 {[%emt 0:01:07]} Rc8 {[%emt 0:02:54]} 22. Rc2 {[%emt 0:02:34]} Kg7 {[%emt 0:00:56]} 23. Rac1 {[%emt 0:02:43]} Rfe8 {[%emt 0:01:44]} 24. Qe1 {[%emt 0:01:48]} b4 {[%emt 0:01:49]} 25. Ra1 $16 {[%emt 0:00:16]} Qd6 {[%emt 0:05:29]} 26. Qh4 {[%emt 0:12:06]} f4 {[%emt 0:06:09]} 27. g3 {[%emt 0:02:02]} Rf8 {[%emt 0:00:36]} 28. Re1 {[%emt 0:06:25]} Rf7 {[%emt 0:07:15]} 29. gxf4 {[%emt 0:00:45]} exf4 {[%emt 0:00:35]} 30. Bc1 {[%emt 0:01:00]} Re8 {[%emt 0:01:43]} 31. Rg2 {[%emt 0:01:36]} h6 {[%emt 0:01:34]} 32. Kh1 {[%emt 0:02:13]} g5 {[%emt 0:05:13]} 33. Reg1 {[%emt 0:02:53]} Qf6 {[%emt 0:09:43]} 34. Qh5 {[%emt 0:07:29]} Bc8 {[%emt 0:01:03]} 35. h4 {[%emt 0:01:46]} Rh8 {[%emt 0:01:58]} 36. Rh2 {[%emt 0:02:14]} g4 {[%emt 0:00:23]} 37. fxg4 {[%emt 0:00:18]} f3 {[%emt 0:00:12]} 38. g5 {[%emt 0:02:42]} Qd6 {[%emt 0:00:56]} 39. Rf2 {[%emt 0:00:44]} Kf8 {[%emt 0:00:04]} 40. g6 {[%emt 0:01:33]} 1-0

[Event "SWE-ch Masters Elite 2018"]
[Site "Ronneby"]
[Date "2018.07.07"]
[Round "8"]
[White "Lundin, Jan"]
[Black "Lind, Jan-Olov"]
[Result "1-0"]
[ECO "A03"]
[WhiteElo "2282"]
[BlackElo "2234"]
[Annotator "NA"]
[PlyCount "123"]
[EventDate "2018.06.30"]
[EventType "tourn"]
[EventCountry "SWE"]
[SourceTitle "playchess.com"]
[Source "ChessBase"]
[SourceQuality "1"]
[TimeControl "40/5400+30:1800+30"]

1. f4 {[%emt 0:00:00]} d5 {[%emt 0:01:19]} 2. Nf3 {[%emt 0:00:02]} g6 {[%emt 0:02:04]} 3. g3 {[%emt 0:00:31]} Bg7 {[%emt 0:00:09]} 4. d3 {[%emt 0:02:45]} Nf6 {[%emt 0:00:24]} 5. Bg2 {[%emt 0:02:39]} O-O {[%emt 0:00:11]} 6. O-O {[%emt 0:00:33]} c5 {[%emt 0:01:39]} 7. c3 {[%emt 0:02:27]} Nc6 {[%emt 0:01:06]} 8. Na3 {[%emt 0:00:15]} Rb8 {[%emt 0:10:57]} 9. Ne5 {[%emt 0:11:29] A03: Bird's Opening with 1...d5} (9. Qe1 b5 10. Nc2 b4 11. Ne5 Nxe5 12. fxe5 Ng4 13. cxb4 cxb4 14. d4 Qb6 15. e3 Bf5 16. Qd1 Rbc8 {½-½ (37) Nakamura,H (2741)-Svidler,P (2722) Moscow 2010}) 9... Nxe5 {[%emt 0:14:56]} 10. fxe5 {[%emt 0:00:09]} Ng4 {[%emt 0:00:33] LiveBook: 3 Games} 11. d4 {[%emt 0:01:54]} cxd4 {[%emt 0:00:42]} 12. cxd4 {[%emt 0:00:12]} Qb6 {[%emt 0:00:59]} 13. Kh1 $146 {[%emt 0:09:26]} ({Predecessor:} 13. e3 Be6 14. Qb3 Qxb3 15. axb3 Rfc8 16. Bd2 b5 {1-0 (48) Vasiukov,E (2451)-Sorensen,B (2262) Vilnius 2014}) 13... Be6 {[%emt 0:00:48]} 14. h3 {[%emt 0:02:00]} Nxe5 {[%emt 0:07:07]} 15. dxe5 {[%emt 0:01:09]} Bxe5 {[%emt 0:00:12]} 16. Bf4 {[%emt 0:10:18]} Bxf4 {[%emt 0:00:52]} 17. gxf4 {[%emt 0:01:14]} Qxb2 {[%emt 0:00:25]} 18. Nc2 {[%emt 0:01:19]} Rfd8 {[%emt 0:09:25]} 19. Nd4 {[%emt 0:00:42]} Bd7 $16 {[%emt 0:01:28]} 20. Qd3 {[%emt 0:04:31]} Qb6 {[%emt 0:04:05]} 21. Rab1 {[%emt 0:02:36]} Qf6 {[%emt 0:03:51]} 22. Qe3 {[%emt 0:02:38]} b6 {[%emt 0:09:39]} 23. Rbc1 {[%emt 0:01:23]} Rbc8 {[%emt 0:07:08]} 24. Rfd1 {[%emt 0:10:57]} e6 {[%emt 0:03:37]} 25. Nf3 {[%emt 0:10:54]} Qb2 {[%emt 0:06:15]} 26. Ne5 {[%emt 0:06:34]} Ba4 {[%emt 0:01:20]} 27. Rb1 {[%emt 0:00:46]} Qc3 {[%emt 0:01:15]} 28. Rd3 {[%emt 0:02:40]} Qc2 {[%emt 0:00:57]} 29. Rb4 {[%emt 0:00:30]} Qc1+ {[%emt 0:01:00]} 30. Kh2 {[%emt 0:00:35]} Qxe3 {[%emt 0:00:22]} 31. Rxe3 {[%emt 0:00:11]} Be8 {[%emt 0:01:44]} 32. Ra3 {[%emt 0:01:52]} Rc7 {[%emt 0:00:10]} 33. Kg3 {[%emt 0:00:36]} Rdc8 {[%emt 0:00:43]} 34. Kf2 {[%emt 0:00:22]} Kf8 {[%emt 0:00:51]} 35. h4 {[%emt 0:00:27]} h5 {[%emt 0:03:19]} 36. Nd3 {[%emt 0:00:48]} Ke7 {[%emt 0:01:05]} 37. f5 {[%emt 0:04:58]} Kd6 {[%emt 0:01:57]} 38. fxg6 {[%emt 0:00:35]} fxg6 {[%emt 0:00:09]} 39. Bh3 {[%emt 0:00:37]} Rf7+ {[%emt 0:00:39]} 40. Ke3 {[%emt 0:01:33]} Rc2 {[%emt 0:02:21]} 41. Ne1 {[%emt 0:07:34]} Rc4 {[%emt 0:07:32]} 42. Rxc4 {[%emt 0:02:53]} dxc4 {[%emt 0:00:07]} 43. Nf3 {[%emt 0:00:43]} a5 {[%emt 0:08:01]} 44. Ng5 {[%emt 0:04:05]} Rc7 {[%emt 0:00:58]} 45. Nxe6 {[%emt 0:09:15]} Re7 {[%emt 0:00:50]} 46. Kd4 {[%emt 0:00:07]} Bd7 {[%emt 0:02:07]} 47. Nf4 {[%emt 0:01:42]} Bxh3 {[%emt 0:01:27]} 48. Rxh3 {[%emt 0:01:16]} b5 {[%emt 0:00:33]} 49. Rg3 {[%emt 0:04:21]} b4 {[%emt 0:02:10]} 50. Rxg6+ {[%emt 0:00:10]} Kd7 {[%emt 0:00:09]} 51. Ra6 {[%emt 0:00:14]} Kc8 {[%emt 0:04:48]} 52. Rxa5 {[%emt 0:00:36]} c3 {[%emt 0:01:49]} 53. Rxh5 {[%emt 0:01:08]} Rd7+ {[%emt 0:01:35]} 54. Rd5 {[%emt 0:00:58]} Ra7 {[%emt 0:00:36]} 55. Rb5 {[%emt 0:02:49]} Ra4 {[%emt 0:01:12]} 56. Ke3 {[%emt 0:01:46]} Kd7 {[%emt 0:01:03]} 57. Nd3 {[%emt 0:00:19]} c2 {[%emt 0:01:05]} 58. Nc1 {[%emt 0:00:54]} Kc6 {[%emt 0:00:51]} 59. Rh5 {[%emt 0:00:29]} Ra3+ {[%emt 0:02:32]} 60. Kd2 {[%emt 0:00:10]} Rc3 {[%emt 0:00:13]} 61. Rg5 {[%emt 0:00:22]} Kb6 {[%emt 0:01:02]} 62. h5 {[%emt 0:00:23]} 1-0

[Event "SWE-ch Masters Elite 2018"]
[Site "Ronneby"]
[Date "2018.07.07"]
[Round "8"]
[White "Landgren, Andreas"]
[Black "Ziegler, Ari"]
[Result "0-1"]
[ECO "E98"]
[WhiteElo "2278"]
[BlackElo "2305"]
[Annotator "NA"]
[PlyCount "68"]
[EventDate "2018.06.30"]
[EventType "tourn"]
[EventCountry "SWE"]
[SourceTitle "playchess.com"]
[Source "ChessBase"]
[SourceQuality "1"]
[TimeControl "40/5400+30:1800+30"]

1. d4 {[%emt 0:00:00]} Nf6 {[%emt 0:00:00]} 2. c4 {[%emt 0:00:00]} g6 {[%emt 0:00:00]} 3. Nc3 {[%emt 0:00:00]} Bg7 {[%emt 0:00:00]} 4. e4 {[%emt 0:00:00]} d6 {[%emt 0:00:00]} 5. Nf3 {[%emt 0:00:04]} O-O {[%emt 0:00:00]} 6. Be2 {[%emt 0:00:06]} e5 {[%emt 0:00:01]} 7. O-O {[%emt 0:00:07]} Nc6 {[%emt 0:00:04]} 8. d5 {[%emt 0:00:09]} Ne7 {[%emt 0:00:04]} 9. Ne1 {[%emt 0:00:07]} Nd7 {[%emt 0:00:06]} 10. Be3 {[%emt 0:00:10]} f5 {[%emt 0:00:06]} 11. f3 {[%emt 0:00:05]} f4 {[%emt 0:00:06]} 12. Bf2 {[%emt 0:00:04]} g5 {[%emt 0:00:05]} 13. Rc1 {[%emt 0:00:12]} Rf6 {[%emt 0:00:07]} 14. Nd3 {[%emt 0:00:22] E99: King's Indian: Classical Main Line: 9 Ne1 Nd7 10 f3 f5} b6 {[%emt 0:00:07]} 15. b4 {[%emt 0:02:54]} a6 {[%emt 0:00:41]} 16. c5 {[%emt 0:01:28]} Rg6 {[%emt 0:00:49]} (16... Rh6 17. cxd6 cxd6 18. g4 fxg3 19. hxg3 Ng6 20. Kg2 Nf6 21. Rh1 Rxh1 22. Kxh1 {1-0 (43) So,W (2744)-Vocaturo,D (2584) Bergamo 2014 CBM 162 [So,Wesley]}) 17. cxd6 $146 {[%emt 0:29:22]} ({Predecessor:} 17. Qc2 Rb8 18. cxd6 cxd6 19. Nb1 Qe8 20. Qa4 g4 21. fxg4 b5 {1-0 (48) Suomalainen,E (2156)-Kononen,K (2229) Finland 2014}) 17... cxd6 {[%emt 0:02:22]} 18. g4 {[%emt 0:16:32]} fxg3 {[%emt 0:13:43]} 19. hxg3 {[%emt 0:00:05]} h5 {[%emt 0:06:10]} 20. Kg2 {[%emt 0:01:05]} Nf6 {[%emt 0:03:10]} 21. Rh1 {[%emt 0:01:03]} Bd7 {[%emt 0:04:31]} 22. Be3 {[%emt 0:01:58]} Rc8 {[%emt 0:04:22]} 23. Qd2 {[%emt 0:06:27]} g4 {[%emt 0:03:01] [#]} 24. f4 $17 {[%emt 0:01:18]} (24. Nf2 $1 $16 {and life is bright.}) 24... Rxc3 {[%emt 0:04:05]} 25. Qxc3 {[%emt 0:00:15]} Nxe4 {[%emt 0:00:43]} 26. Qc4 {[%emt 0:05:51]} b5 {[%emt 0:01:59]} 27. Qc7 {[%emt 0:10:49]} Qxc7 {[%emt 0:05:56]} 28. Rxc7 {[%emt 0:00:02]} Nxd5 {[%emt 0:00:09]} 29. Rxd7 {[%emt 0:00:16]} Nxe3+ {[%emt 0:00:05]} 30. Kh2 {[%emt 0:00:10]} h4 {[%emt 0:03:01]} 31. gxh4 {[%emt 0:09:57]} exf4 {[%emt 0:39:56]} 32. Rxg7+ {[%emt 0:05:44]} Rxg7 {[%emt 0:01:28]} 33. Nxf4 {[%emt 0:00:01]} g3+ {[%emt 0:00:27]} 34. Kh3 {[%emt 0:00:31]} Nf2# {Kh2} 0-1

[Event "SWE-ch Masters Elite 2018"]
[Site "Ronneby"]
[Date "2018.07.07"]
[Round "8"]
[White "Lindh, Fredrik"]
[Black "Logdahl, Harald"]
[Result "0-1"]
[ECO "B05"]
[WhiteElo "2273"]
[BlackElo "2249"]
[Annotator "NA"]
[PlyCount "112"]
[EventDate "2018.06.30"]
[EventType "tourn"]
[EventCountry "SWE"]
[SourceTitle "playchess.com"]
[Source "ChessBase"]
[SourceQuality "1"]
[TimeControl "40/5400+30:1800+30"]

1. e4 {[%emt 0:00:45]} Nf6 {[%emt 0:00:00]} 2. e5 {[%emt 0:00:08]} Nd5 {[%emt 0:00:00]} 3. d4 {[%emt 0:00:05]} d6 {[%emt 0:00:00]} 4. Nf3 {[%emt 0:00:06]} Bg4 {[%emt 0:01:02]} 5. Be2 {[%emt 0:01:53]} c6 {[%emt 0:00:07]} 6. c4 {[%emt 0:00:30]} Nb6 {[%emt 0:01:00]} 7. Nbd2 {[%emt 0:00:08]} N8d7 {[%emt 0:00:28]} 8. O-O {[%emt 0:00:50]} dxe5 {[%emt 0:00:28]} 9. Nxe5 {[%emt 0:00:07]} Nxe5 {[%emt 0:00:48]} 10. dxe5 {[%emt 0:00:38]} Bxe2 {[%emt 0:01:04]} 11. Qxe2 {[%emt 0:00:05]} e6 {[%emt 0:00:04]} 12. Nf3 {[%emt 0:09:00]} Qc7 {[%emt 0:01:58]} 13. Rd1 {[%emt 0:10:39]} Nd7 {[%emt 0:05:18]} 14. Bd2 {[%emt 0:20:22]} a5 {[%emt 0:06:29]} 15. Bc3 {[%emt 0:10:09]} Be7 {[%emt 0:10:36]} 16. h4 {[%emt 0:04:40]} O-O {[%emt 0:02:24]} 17. h5 {[%emt 0:00:08]} Rfd8 $14 {[%emt 0:02:32]} 18. Rd4 {[%emt 0:06:09]} Nf8 {[%emt 0:02:12]} 19. Rad1 {[%emt 0:07:18]} Rxd4 {[%emt 0:08:44]} 20. Nxd4 {[%emt 0:00:47]} Rd8 {[%emt 0:01:58]} 21. Rd3 {[%emt 0:01:58]} Bc5 {[%emt 0:21:52]} 22. Nb3 {[%emt 0:06:51]} Rxd3 {[%emt 0:03:36]} 23. Qxd3 {[%emt 0:00:07]} Bb4 {[%emt 0:05:52]} 24. Bxb4 {[%emt 0:04:09]} axb4 {[%emt 0:00:04]} 25. f4 {[%emt 0:09:09]} Qb6+ {[%emt 0:02:47]} 26. Qd4 {[%emt 0:00:04]} Qa6 {[%emt 0:04:14]} 27. Nc5 {[%emt 0:00:47]} Qxa2 {[%emt 0:03:54]} 28. Nxb7 {[%emt 0:00:06]} Qb1+ {[%emt 0:02:10]} 29. Kf2 {[%emt 0:01:08]} Qf5 {[%emt 0:01:33]} 30. Nd8 {[%emt 0:00:51]} c5 {[%emt 0:01:31]} 31. Qxc5 {[%emt 0:02:19]} Qxf4+ {[%emt 0:00:06]} 32. Kg1 {[%emt 0:00:07]} b3 {[%emt 0:05:27]} 33. Qf2 {[%emt 0:02:37]} Qxf2+ {[%emt 0:04:18]} 34. Kxf2 {[%emt 0:00:04]} Nd7 {[%emt 0:00:07]} 35. Ke3 {[%emt 0:00:21]} Nc5 {[%emt 0:01:10]} 36. Kd4 {[%emt 0:01:58]} Na4 {[%emt 0:00:05]} 37. Nb7 {[%emt 0:00:52]} Kf8 {[%emt 0:01:27]} 38. Nc5 {[%emt 0:00:31]} Nxb2 {[%emt 0:00:14]} 39. Nxb3 {[%emt 0:00:04]} Ke7 {[%emt 0:00:19]} 40. Nd2 {[%emt 0:00:50]} Kd7 {[%emt 0:01:10]} 41. Ne4 {[%emt 0:01:10]} h6 {[%emt 0:01:04]} 42. Nd6 {[%emt 0:09:28]} Ke7 {[%emt 0:10:37]} 43. c5 {[%emt 0:14:14]} Na4 {[%emt 0:00:18]} 44. c6 {[%emt 0:04:08]} Nb6 {[%emt 0:00:34]} 45. Kc5 {[%emt 0:00:26]} Na8 {[%emt 0:10:33]} 46. Nxf7 {[%emt 0:00:23]} Kxf7 {[%emt 0:00:38]} 47. Kd6 {[%emt 0:00:05]} Ke8 {[%emt 0:07:15]} 48. c7 {[%emt 0:01:33]} Nb6 {[%emt 0:00:03]} 49. Kxe6 {[%emt 0:00:37]} Nc8 {[%emt 0:00:03]} 50. g4 {[%emt 0:02:10]} Ne7 {[%emt 0:00:07]} 51. Kd6 {[%emt 0:00:22]} Nc8+ {[%emt 0:00:04]} 52. Kc6 {[%emt 0:01:17]} Ne7+ {[%emt 0:00:28]} 53. Kb7 {[%emt 0:00:42]} Kd7 {[%emt 0:00:22]} 54. Kb8 {[%emt 0:00:19]} Ke6 {[%emt 0:00:19]} 55. Kb7 {[%emt 0:00:20]} Kxe5 {[%emt 0:00:32]} 56. Kb6 {[%emt 0:00:07]} Nd5+ {[%emt 0:00:11]} 0-1